[Event "Early-Titled-Tuesday-Blitz-October-03-2023"]
[Site "Chess.com"]
[Date "2023.10.03"]
[Round "6"]
[White "Xqswdc"]
[Black "Orest_Vovk"]
[Result "1-0"]
[WhiteElo "2331"]
[BlackElo "2515"]
[TimeControl "180+1"]
[EndTime "9:07:45 PDT"]
[Termination "Xqswdc won by resignation"]

1. e4 {[%clk 0:03:00.9]} 1... g5 {[%clk 0:02:56.4]} 2. d4 {[%clk 0:02:56.6]}
2... g4 {[%clk 0:02:56.1]} 3. Nc3 {[%clk 0:02:56.7]} 3... Bg7 {[%clk 0:02:51]}
4. Be3 {[%clk 0:02:52.1]} 4... h5 {[%clk 0:02:36.9]} 5. Nge2 {[%clk 0:02:51.9]}
5... c5 {[%clk 0:02:35.2]} 6. dxc5 {[%clk 0:02:51.8]} 6... Nc6 {[%clk
0:02:34.1]} 7. Qd3 {[%clk 0:02:50.1]} 7... Qa5 {[%clk 0:02:33.8]} 8. a3 {[%clk
0:02:48.1]} 8... b6 {[%clk 0:02:33.4]} 9. cxb6 {[%clk 0:02:43.5]} 9... axb6
{[%clk 0:02:28.5]} 10. Nd4 {[%clk 0:02:41.3]} 10... Ba6 {[%clk 0:02:18.7]} 11.
Qd2 {[%clk 0:02:40.2]} 11... Ne5 {[%clk 0:02:13.9]} 12. b4 {[%clk 0:02:36.6]}
12... Bxf1 {[%clk 0:02:05.1]} 13. bxa5 {[%clk 0:02:33.1]} 13... Bxg2 {[%clk
0:02:03.2]} 14. axb6 {[%clk 0:02:24.2]} 14... Bxh1 {[%clk 0:01:57.8]} 15. Nd5
{[%clk 0:02:18.1]} 15... Rb8 {[%clk 0:01:44.1]} 16. Nf5 {[%clk 0:02:07]} 16...
Nf3+ {[%clk 0:01:42.4]} 17. Ke2 {[%clk 0:02:05.4]} 17... Nxd2 {[%clk 0:01:42.6]}
18. Nxg7+ {[%clk 0:02:00.2]} 18... Kf8 {[%clk 0:01:42]} 19. Rxh1 {[%clk
0:01:48.4]} 19... Nxe4 {[%clk 0:01:28.6]} 20. Bf4 {[%clk 0:01:25]} 20... Rb7
{[%clk 0:01:11.8]} 21. Nf5 {[%clk 0:01:23.9]} 21... e6 {[%clk 0:01:04]} 22. Nd6
{[%clk 0:01:20.7]} 22... Nxd6 {[%clk 0:01:04]} 23. Bxd6+ {[%clk 0:01:21.1]}
23... Kg7 {[%clk 0:01:04.5]} 24. a4 {[%clk 0:00:39.5]} 24... exd5 {[%clk
0:00:53.9]} 25. a5 {[%clk 0:00:40]} 25... Nf6 {[%clk 0:00:52.7]} 26. Kd3 {[%clk
0:00:32.7]} 26... Ra8 {[%clk 0:00:51.4]} 27. Ra1 {[%clk 0:00:25.2]} 27... Rxb6
{[%clk 0:00:38.1]} 28. axb6 {[%clk 0:00:26.1]} 28... Rxa1 {[%clk 0:00:37.8]} 29.
c3 {[%clk 0:00:20.3]} 29... Rb1 {[%clk 0:00:17.8]} 30. Bb4 {[%clk 0:00:19.9]}
30... Re1 {[%clk 0:00:16.2]} 31. b7 {[%clk 0:00:16.7]} 31... Re8 {[%clk
0:00:15.7]} 32. Bd6 {[%clk 0:00:17.2]} 32... Ne4 {[%clk 0:00:13.7]} 33. b8=Q
{[%clk 0:00:14.4]} 33... Rxb8 {[%clk 0:00:13.5]} 34. Bxb8 {[%clk 0:00:15.3]}
34... Nxf2+ {[%clk 0:00:13.8]} 35. Ke3 {[%clk 0:00:15.5]} 35... Ne4 {[%clk
0:00:13]} 36. Kd4 {[%clk 0:00:15.5]} 36... Nf6 {[%clk 0:00:10.4]} 37. Ke5 {[%clk
0:00:11.2]} 37... Kg6 {[%clk 0:00:10.5]} 38. Bc7 {[%clk 0:00:10.3]} 38... h4
{[%clk 0:00:10.2]} 39. Kf4 {[%clk 0:00:10.6]} 39... Kh5 {[%clk 0:00:04.9]} 40.
Be5 {[%clk 0:00:06.8]} 40... Ne4 {[%clk 0:00:04.7]} 41. Bd4 {[%clk 0:00:07.4]}
41... g3 {[%clk 0:00:03.6]} 42. hxg3 {[%clk 0:00:07]} 42... hxg3 {[%clk
0:00:04.5]} 43. Kf3 {[%clk 0:00:07.6]} 43... Kh4 {[%clk 0:00:04.9]} 44. c4
{[%clk 0:00:05.7]} 44... f5 {[%clk 0:00:04.4]} 45. cxd5 {[%clk 0:00:05.6]} 45...
Kh3 {[%clk 0:00:04.9]} 46. Kf4 {[%clk 0:00:04.1]} 46... g2 {[%clk 0:00:04.2]}
47. Kxf5 {[%clk 0:00:04.1]} 47... Kg3 {[%clk 0:00:04]} 48. Kxe4 {[%clk
0:00:02.9]} 48... Kg4 {[%clk 0:00:04.2]} 49. Ke5 {[%clk 0:00:03.2]} 49... Kf3
{[%clk 0:00:04.6]} 50. Kd6 {[%clk 0:00:03.3]} 50... Ke4 {[%clk 0:00:04.7]} 51.
Bg1 {[%clk 0:00:03.5]} 51... Kf5 {[%clk 0:00:03]} 52. Kxd7 {[%clk 0:00:03.7]}
52... Ke5 {[%clk 0:00:03.9]} 53. Kc6 {[%clk 0:00:04]} 53... Ke4 {[%clk
0:00:04.6]} 54. d6 {[%clk 0:00:04.6]} 54... Kf3 {[%clk 0:00:04.9]} 55. d7 {[%clk
0:00:05.2]} 55... Ke2 {[%clk 0:00:05.8]} 56. d8=Q {[%clk 0:00:05.1]} 56... Kf1
{[%clk 0:00:06.7]} 57. Bd4 {[%clk 0:00:04.8]} 1-0

[Event "Early-Titled-Tuesday-Blitz-October-03-2023"]
[Site "Chess.com"]
[Date "2023.10.03"]
[Round "6"]
[White "Balla_Tamas"]
[Black "Fore_Man"]
[Result "1-0"]
[WhiteElo "2445"]
[BlackElo "2270"]
[TimeControl "180+1"]
[EndTime "9:07:47 PDT"]
[Termination "Balla_Tamas won by resignation"]

1. e4 {[%clk 0:03:00.9]} 1... c5 {[%clk 0:02:59.9]} 2. c3 {[%clk 0:03:00]} 2...
d5 {[%clk 0:02:59.8]} 3. exd5 {[%clk 0:03:00.3]} 3... Qxd5 {[%clk 0:03:00.7]} 4.
d4 {[%clk 0:03:00.9]} 4... Nc6 {[%clk 0:02:59.3]} 5. Nf3 {[%clk 0:03:01.3]} 5...
Bg4 {[%clk 0:02:59.3]} 6. Be2 {[%clk 0:03:00]} 6... cxd4 {[%clk 0:02:58.8]} 7.
cxd4 {[%clk 0:02:59.9]} 7... e6 {[%clk 0:02:59.3]} 8. Nc3 {[%clk 0:03:00]} 8...
Qd6 {[%clk 0:02:59.9]} 9. h3 {[%clk 0:02:59.5]} 9... Bh5 {[%clk 0:02:59.1]} 10.
O-O {[%clk 0:02:59.7]} 10... Nf6 {[%clk 0:02:59.2]} 11. Be3 {[%clk 0:03:00.2]}
11... Be7 {[%clk 0:02:59.3]} 12. a3 {[%clk 0:03:00.3]} 12... O-O {[%clk
0:02:58.7]} 13. Qb3 {[%clk 0:02:57.3]} 13... Rfd8 {[%clk 0:02:50.5]} 14. Rad1
{[%clk 0:02:54.9]} 14... a6 {[%clk 0:02:50.3]} 15. Rfe1 {[%clk 0:02:50.8]} 15...
Rac8 {[%clk 0:02:47.2]} 16. Ne5 {[%clk 0:02:38.1]} 16... Nxe5 {[%clk 0:02:34.2]}
17. Bxh5 {[%clk 0:02:24.4]} 17... Nc4 {[%clk 0:02:32.5]} 18. Bf3 {[%clk
0:02:09.9]} 18... Nxe3 {[%clk 0:02:12.3]} 19. Rxe3 {[%clk 0:02:08.3]} 19... b5
{[%clk 0:01:59.5]} 20. d5 {[%clk 0:01:57.1]} 20... e5 {[%clk 0:01:48]} 21. Rde1
{[%clk 0:01:43.1]} 21... Nd7 {[%clk 0:01:31.2]} 22. Ne4 {[%clk 0:01:37]} 22...
Qb6 {[%clk 0:01:31.2]} 23. Ng3 {[%clk 0:01:27.4]} 23... Bc5 {[%clk 0:01:28.2]}
24. R3e2 {[%clk 0:01:25.4]} 24... Bd4 {[%clk 0:01:24.9]} 25. Nf5 {[%clk
0:01:23]} 25... Nc5 {[%clk 0:01:22.9]} 26. Ne7+ {[%clk 0:01:18.4]} 26... Kf8
{[%clk 0:01:22.2]} 27. Nxc8 {[%clk 0:01:16.6]} 27... Rxc8 {[%clk 0:01:20.9]} 28.
Qd1 {[%clk 0:01:08.6]} 28... Na4 {[%clk 0:01:18.2]} 29. Qd3 {[%clk 0:00:58.6]}
29... Nxb2 {[%clk 0:01:03.1]} 30. Qxh7 {[%clk 0:00:57.1]} 30... Qh6 {[%clk
0:00:33.7]} 31. Qf5 {[%clk 0:00:47.5]} 31... Rd8 {[%clk 0:00:29.1]} 32. Rxe5
{[%clk 0:00:37.7]} 32... Bxe5 {[%clk 0:00:29.1]} 33. Qxe5 {[%clk 0:00:38.6]}
33... Qf6 {[%clk 0:00:20.1]} 34. Qc7 {[%clk 0:00:22.9]} 34... Nc4 {[%clk
0:00:18]} 35. Qc6 {[%clk 0:00:19.5]} 35... Qd6 {[%clk 0:00:13.1]} 36. Qb7 {[%clk
0:00:13.6]} 36... Qxa3 {[%clk 0:00:11.8]} 37. Qc7 {[%clk 0:00:09.2]} 37... Qd6
{[%clk 0:00:11.8]} 38. Qb7 {[%clk 0:00:09.6]} 38... b4 {[%clk 0:00:10]} 39. Bg4
{[%clk 0:00:07.8]} 39... Ne5 {[%clk 0:00:08.9]} 40. Bf5 {[%clk 0:00:07.3]} 40...
Qxd5 {[%clk 0:00:07.2]} 41. Qxa6 {[%clk 0:00:07.2]} 41... b3 {[%clk 0:00:05.2]}
42. Qe2 {[%clk 0:00:07.3]} 42... Nc6 {[%clk 0:00:04.4]} 43. Bg4 {[%clk
0:00:06.9]} 43... Qd6 {[%clk 0:00:03.3]} 44. Qe4 {[%clk 0:00:06.8]} 44... Ne7
{[%clk 0:00:02.8]} 45. Qh7 {[%clk 0:00:07]} 45... Ng8 {[%clk 0:00:03.4]} 46. Qf5
{[%clk 0:00:06.9]} 46... b2 {[%clk 0:00:02.8]} 47. Qb1 {[%clk 0:00:07.2]} 47...
Qd2 {[%clk 0:00:02.9]} 48. Bf5 {[%clk 0:00:06.9]} 48... Nf6 {[%clk 0:00:03.4]}
49. Bc2 {[%clk 0:00:07.1]} 49... Nd5 {[%clk 0:00:03.4]} 50. Rd1 {[%clk
0:00:07.7]} 50... Nc3 {[%clk 0:00:03.3]} 51. Rxd2 {[%clk 0:00:07.5]} 51... Rb8
{[%clk 0:00:01.9]} 52. Rd8+ {[%clk 0:00:05.9]} 52... Rxd8 {[%clk 0:00:01.8]} 53.
Qxb2 {[%clk 0:00:06.6]} 53... Nd5 {[%clk 0:00:01.8]} 54. Qa3+ {[%clk 0:00:06.9]}
54... Ne7 {[%clk 0:00:02.5]} 55. Bb3 {[%clk 0:00:07.2]} 55... Rd6 {[%clk
0:00:02.8]} 56. Qxd6 {[%clk 0:00:07.2]} 1-0

[Event "Early-Titled-Tuesday-Blitz-October-03-2023"]
[Site "Chess.com"]
[Date "2023.10.03"]
[Round "6"]
[White "Hrant_ChessMood"]
[Black "Krakozia"]
[Result "1-0"]
[WhiteElo "2934"]
[BlackElo "3029"]
[TimeControl "180+1"]
[EndTime "9:07:48 PDT"]
[Termination "Hrant_ChessMood won on time"]

1. d4 {[%clk 0:03:00.9]} 1... Nf6 {[%clk 0:02:59.9]} 2. c4 {[%clk 0:03:00.4]}
2... e6 {[%clk 0:03:00.5]} 3. Bf4 {[%clk 0:03:01]} 3... d5 {[%clk 0:02:54.3]} 4.
e3 {[%clk 0:03:01]} 4... c5 {[%clk 0:02:52.2]} 5. dxc5 {[%clk 0:03:00.6]} 5...
Bxc5 {[%clk 0:02:49.7]} 6. Nc3 {[%clk 0:03:00.8]} 6... O-O {[%clk 0:02:47.1]} 7.
Nf3 {[%clk 0:03:00.6]} 7... Nc6 {[%clk 0:02:46.7]} 8. Be2 {[%clk 0:03:00.4]}
8... dxc4 {[%clk 0:02:36.9]} 9. O-O {[%clk 0:02:59.1]} 9... Nh5 {[%clk
0:02:31.6]} 10. Bxc4 {[%clk 0:02:54.6]} 10... Nxf4 {[%clk 0:02:26.9]} 11. exf4
{[%clk 0:02:55.5]} 11... Qxd1 {[%clk 0:02:19.7]} 12. Rfxd1 {[%clk 0:02:56.4]}
12... Be7 {[%clk 0:02:19.6]} 13. Ne4 {[%clk 0:02:53.1]} 13... Rd8 {[%clk
0:02:03.9]} 14. Rxd8+ {[%clk 0:02:50.9]} 14... Nxd8 {[%clk 0:02:02]} 15. Rd1
{[%clk 0:02:51.8]} 15... Kf8 {[%clk 0:01:49.8]} 16. Ne5 {[%clk 0:02:34.5]} 16...
a6 {[%clk 0:01:43.3]} 17. a4 {[%clk 0:02:14.2]} 17... f6 {[%clk 0:01:43.1]} 18.
Nf3 {[%clk 0:02:08.1]} 18... Nc6 {[%clk 0:01:42.8]} 19. g3 {[%clk 0:01:59.4]}
19... Rb8 {[%clk 0:01:36.1]} 20. h4 {[%clk 0:01:41.5]} 20... b5 {[%clk
0:01:30.1]} 21. axb5 {[%clk 0:01:42.4]} 21... axb5 {[%clk 0:01:30.3]} 22. Bf1
{[%clk 0:01:33.6]} 22... Bb7 {[%clk 0:01:17]} 23. Nc3 {[%clk 0:01:17.6]} 23...
b4 {[%clk 0:01:11.7]} 24. Nb5 {[%clk 0:01:17.8]} 24... Rd8 {[%clk 0:01:02.7]}
25. Re1 {[%clk 0:01:09.1]} 25... e5 {[%clk 0:00:48.2]} 26. fxe5 {[%clk
0:01:08.5]} 26... fxe5 {[%clk 0:00:47.6]} 27. Nc7 {[%clk 0:00:58.1]} 27... Bc8
{[%clk 0:00:42.6]} 28. Bc4 {[%clk 0:00:53]} 28... Bf6 {[%clk 0:00:36.6]} 29. Nd5
{[%clk 0:00:44.5]} 29... h6 {[%clk 0:00:28.3]} 30. b3 {[%clk 0:00:41.7]} 30...
Bg4 {[%clk 0:00:27.6]} 31. Kg2 {[%clk 0:00:41.4]} 31... Na5 {[%clk 0:00:23.4]}
32. Ne3 {[%clk 0:00:30.8]} 32... Bxf3+ {[%clk 0:00:19.8]} 33. Kxf3 {[%clk
0:00:31.7]} 33... Nxc4 {[%clk 0:00:18]} 34. Nxc4 {[%clk 0:00:31.9]} 34... Rd3+
{[%clk 0:00:16.9]} 35. Re3 {[%clk 0:00:32.3]} 35... Rc3 {[%clk 0:00:16.3]} 36.
Nd6 {[%clk 0:00:22.8]} 36... Ke7 {[%clk 0:00:14.3]} 37. Ne4 {[%clk 0:00:21.9]}
37... Rc2 {[%clk 0:00:14.2]} 38. Re2 {[%clk 0:00:19.9]} 38... Rc6 {[%clk
0:00:14.1]} 39. Ra2 {[%clk 0:00:19.1]} 39... Ke6 {[%clk 0:00:14.1]} 40. Ra4
{[%clk 0:00:19.3]} 40... Be7 {[%clk 0:00:14.5]} 41. Ra7 {[%clk 0:00:18.5]} 41...
g6 {[%clk 0:00:13]} 42. Rb7 {[%clk 0:00:18.3]} 42... h5 {[%clk 0:00:12.2]} 43.
Ke3 {[%clk 0:00:18.7]} 43... Ra6 {[%clk 0:00:10.9]} 44. Rb5 {[%clk 0:00:13.2]}
44... Ra3 {[%clk 0:00:09.7]} 45. Nd2 {[%clk 0:00:13.8]} 45... g5 {[%clk
0:00:06.5]} 46. hxg5 {[%clk 0:00:12.1]} 46... Bxg5+ {[%clk 0:00:06.3]} 47. f4
{[%clk 0:00:12.6]} 47... exf4+ {[%clk 0:00:06]} 48. gxf4 {[%clk 0:00:13.5]}
48... Bf6 {[%clk 0:00:05.6]} 49. Rb6+ {[%clk 0:00:12.9]} 49... Kf7 {[%clk
0:00:05.1]} 50. Rxb4 {[%clk 0:00:12.1]} 50... Bc3 {[%clk 0:00:04.8]} 51. Rb7+
{[%clk 0:00:12]} 51... Ke6 {[%clk 0:00:04.8]} 52. Ne4 {[%clk 0:00:12.9]} 52...
Ba5 {[%clk 0:00:03.9]} 53. Rb5 {[%clk 0:00:12.6]} 53... h4 {[%clk 0:00:02.7]}
54. f5+ {[%clk 0:00:12.5]} 54... Kf7 {[%clk 0:00:02]} 55. Rb7+ {[%clk
0:00:12.3]} 55... Kf8 {[%clk 0:00:02.3]} 56. f6 {[%clk 0:00:11.7]} 56... Bd8
{[%clk 0:00:02.3]} 57. Ng5 {[%clk 0:00:09.1]} 57... h3 {[%clk 0:00:01.3]} 58.
Ne6+ {[%clk 0:00:08.8]} 1-0

[Event "Early-Titled-Tuesday-Blitz-October-03-2023"]
[Site "Chess.com"]
[Date "2023.10.03"]
[Round "6"]
[White "hakanazeri2"]
[Black "falzehope0"]
[Result "1-0"]
[WhiteElo "2608"]
[BlackElo "2373"]
[TimeControl "180+1"]
[EndTime "9:07:49 PDT"]
[Termination "hakanazeri2 won by checkmate"]

1. Nf3 {[%clk 0:03:00.9]} 1... e6 {[%clk 0:02:59.7]} 2. c4 {[%clk 0:02:57.7]}
2... d5 {[%clk 0:02:59.5]} 3. d4 {[%clk 0:02:57.8]} 3... c6 {[%clk 0:02:53.4]}
4. Nc3 {[%clk 0:02:51.6]} 4... f5 {[%clk 0:02:52.9]} 5. Bg5 {[%clk 0:02:49.6]}
5... Be7 {[%clk 0:02:50.6]} 6. Bxe7 {[%clk 0:02:48.6]} 6... Nxe7 {[%clk
0:02:51.5]} 7. Ne5 {[%clk 0:02:42.8]} 7... Nd7 {[%clk 0:02:50.1]} 8. Nxd7 {[%clk
0:02:38.6]} 8... Bxd7 {[%clk 0:02:49.9]} 9. e3 {[%clk 0:02:39.5]} 9... O-O
{[%clk 0:02:49.2]} 10. Bd3 {[%clk 0:02:39.6]} 10... Ng6 {[%clk 0:02:47.9]} 11.
Qh5 {[%clk 0:02:37.2]} 11... Qb6 {[%clk 0:02:36.2]} 12. b3 {[%clk 0:02:32.1]}
12... Qb4 {[%clk 0:02:22.4]} 13. Rc1 {[%clk 0:02:31]} 13... e5 {[%clk
0:02:00.5]} 14. O-O {[%clk 0:02:14.5]} 14... exd4 {[%clk 0:01:59.3]} 15. exd4
{[%clk 0:02:13.5]} 15... Nf4 {[%clk 0:01:53]} 16. Qf3 {[%clk 0:02:12.8]} 16...
Nxd3 {[%clk 0:01:45.1]} 17. Qxd3 {[%clk 0:02:13.7]} 17... dxc4 {[%clk
0:01:34.5]} 18. bxc4 {[%clk 0:02:10.1]} 18... Be6 {[%clk 0:01:31.4]} 19. d5
{[%clk 0:02:03.7]} 19... Bf7 {[%clk 0:01:30.6]} 20. Rb1 {[%clk 0:01:59.3]} 20...
Qe7 {[%clk 0:01:19.9]} 21. d6 {[%clk 0:01:58.1]} 21... Qd7 {[%clk 0:01:15]} 22.
c5 {[%clk 0:01:57.7]} 22... f4 {[%clk 0:01:14]} 23. Rb4 {[%clk 0:01:30.3]} 23...
Bg6 {[%clk 0:01:05]} 24. Qf3 {[%clk 0:01:21.4]} 24... b6 {[%clk 0:01:02.6]} 25.
Rxf4 {[%clk 0:01:13.1]} 25... bxc5 {[%clk 0:00:59.6]} 26. Rd1 {[%clk 0:01:06.3]}
26... c4 {[%clk 0:00:44.7]} 27. Ne4 {[%clk 0:00:47]} 27... Rxf4 {[%clk
0:00:21.6]} 28. Qxf4 {[%clk 0:00:47.9]} 28... Rf8 {[%clk 0:00:20.9]} 29. Nc5
{[%clk 0:00:28.5]} 29... Rxf4 {[%clk 0:00:11.1]} 30. Nxd7 {[%clk 0:00:28.7]}
30... Bd3 {[%clk 0:00:11.2]} 31. Ne5 {[%clk 0:00:18.2]} 31... Rd4 {[%clk
0:00:11.3]} 32. d7 {[%clk 0:00:11.3]} 32... Kf8 {[%clk 0:00:11.3]} 33. h3 {[%clk
0:00:08.1]} 33... Rd5 {[%clk 0:00:09.8]} 34. Nxc4 {[%clk 0:00:05.7]} 34... Ke7
{[%clk 0:00:08.5]} 35. Ne3 {[%clk 0:00:01.5]} 35... Rd6 {[%clk 0:00:07.8]} 36.
Kh2 {[%clk 0:00:01.8]} 36... Kxd7 {[%clk 0:00:08.1]} 37. g3 {[%clk 0:00:01.3]}
37... c5 {[%clk 0:00:08.5]} 38. Rc1 {[%clk 0:00:01.6]} 38... Kc6 {[%clk
0:00:07.2]} 39. g4 {[%clk 0:00:02.2]} 39... Rd4 {[%clk 0:00:07.5]} 40. Kg3
{[%clk 0:00:02.5]} 40... Kb5 {[%clk 0:00:07.9]} 41. f4 {[%clk 0:00:01.4]} 41...
a5 {[%clk 0:00:08.2]} 42. f5 {[%clk 0:00:01.7]} 42... a4 {[%clk 0:00:08.4]} 43.
g5 {[%clk 0:00:02.2]} 43... a3 {[%clk 0:00:08.5]} 44. f6 {[%clk 0:00:02.6]}
44... gxf6 {[%clk 0:00:09.4]} 45. gxf6 {[%clk 0:00:03.5]} 45... c4 {[%clk
0:00:08.5]} 46. f7 {[%clk 0:00:03.4]} 46... Rd8 {[%clk 0:00:08.8]} 47. Ng4
{[%clk 0:00:03.4]} 47... Rf8 {[%clk 0:00:08.4]} 48. Ne5 {[%clk 0:00:03.8]} 48...
Kb4 {[%clk 0:00:07.8]} 49. Kh4 {[%clk 0:00:02.6]} 49... Be4 {[%clk 0:00:07.3]}
50. Rxc4+ {[%clk 0:00:02.4]} 50... Kb5 {[%clk 0:00:06.5]} 51. Rxe4 {[%clk
0:00:03.3]} 51... Ka5 {[%clk 0:00:03.1]} 52. Kg5 {[%clk 0:00:02.5]} 52... Ka6
{[%clk 0:00:02.5]} 53. Kf6 {[%clk 0:00:02.8]} 53... Rc8 {[%clk 0:00:02.6]} 54.
Nd7 {[%clk 0:00:03]} 54... Rc6+ {[%clk 0:00:02.1]} 55. Re6 {[%clk 0:00:03.5]}
55... Rxe6+ {[%clk 0:00:01.6]} 56. Kxe6 {[%clk 0:00:04.3]} 56... Kb7 {[%clk
0:00:02.2]} 57. f8=Q {[%clk 0:00:05.2]} 57... Kc7 {[%clk 0:00:03.1]} 58. Qc5+
{[%clk 0:00:05.3]} 58... Kb7 {[%clk 0:00:03.6]} 59. Qb6+ {[%clk 0:00:05]} 59...
Kc8 {[%clk 0:00:03.9]} 60. Qb8# {[%clk 0:00:05.9]} 1-0

[Event "Early-Titled-Tuesday-Blitz-October-03-2023"]
[Site "Chess.com"]
[Date "2023.10.03"]
[Round "6"]
[White "Wizard_97"]
[Black "Markov_Mikhail"]
[Result "0-1"]
[WhiteElo "2530"]
[BlackElo "2702"]
[TimeControl "180+1"]
[EndTime "9:07:50 PDT"]
[Termination "Markov_Mikhail won by resignation"]

1. e4 {[%clk 0:03:00.9]} 1... c5 {[%clk 0:02:56.4]} 2. Nf3 {[%clk 0:03:00.8]}
2... d6 {[%clk 0:02:52.4]} 3. d4 {[%clk 0:03:01.2]} 3... cxd4 {[%clk 0:02:47]}
4. Nxd4 {[%clk 0:03:02.1]} 4... Nf6 {[%clk 0:02:47.1]} 5. f3 {[%clk 0:03:02.5]}
5... a6 {[%clk 0:02:47.5]} 6. c4 {[%clk 0:02:56.5]} 6... e6 {[%clk 0:02:45.9]}
7. Nc3 {[%clk 0:02:56.6]} 7... Be7 {[%clk 0:02:44.8]} 8. Be3 {[%clk 0:02:56.9]}
8... O-O {[%clk 0:02:44.7]} 9. Be2 {[%clk 0:02:57.6]} 9... Qc7 {[%clk 0:02:45]}
10. O-O {[%clk 0:02:57.7]} 10... Nc6 {[%clk 0:02:45.6]} 11. Rc1 {[%clk
0:02:57.8]} 11... Nxd4 {[%clk 0:02:42.4]} 12. Bxd4 {[%clk 0:02:57.9]} 12... Bd7
{[%clk 0:02:41.9]} 13. Qd2 {[%clk 0:02:57]} 13... Bc6 {[%clk 0:02:40]} 14. Rfd1
{[%clk 0:02:56.9]} 14... Rad8 {[%clk 0:02:24.7]} 15. Nd5 {[%clk 0:02:57]} 15...
exd5 {[%clk 0:02:22.9]} 16. cxd5 {[%clk 0:02:57.9]} 16... Ra8 {[%clk 0:02:18.5]}
17. Qe3 {[%clk 0:02:11.1]} 17... Qa5 {[%clk 0:02:06.4]} 18. dxc6 {[%clk
0:02:10.3]} 18... bxc6 {[%clk 0:02:07.3]} 19. Rxc6 {[%clk 0:02:08.9]} 19... Qxa2
{[%clk 0:02:06.5]} 20. Rc7 {[%clk 0:02:07.7]} 20... Rfe8 {[%clk 0:02:03]} 21.
Bc4 {[%clk 0:02:01.3]} 21... Qa4 {[%clk 0:02:02.7]} 22. b3 {[%clk 0:01:54.4]}
22... Qa5 {[%clk 0:02:02]} 23. Rb7 {[%clk 0:01:34.5]} 23... Rab8 {[%clk
0:01:32.1]} 24. Rxb8 {[%clk 0:01:30.7]} 24... Rxb8 {[%clk 0:01:33]} 25. Ra1
{[%clk 0:01:30.8]} 25... Qc7 {[%clk 0:01:11.9]} 26. Rxa6 {[%clk 0:01:27.3]}
26... Nd7 {[%clk 0:01:06.2]} 27. Ra7 {[%clk 0:01:19.9]} 27... Qd8 {[%clk
0:01:04.4]} 28. Qf4 {[%clk 0:01:17.4]} 28... Nf6 {[%clk 0:00:51.6]} 29. Qe3
{[%clk 0:01:03.1]} 29... Nd7 {[%clk 0:00:49.1]} 30. Qf4 {[%clk 0:00:37.5]} 30...
Nf6 {[%clk 0:00:40.5]} 31. Kf1 {[%clk 0:00:36.4]} 31... Ra8 {[%clk 0:00:35.5]}
32. Rxa8 {[%clk 0:00:20.5]} 32... Qxa8 {[%clk 0:00:36.4]} 33. Qd2 {[%clk
0:00:18.8]} 33... Nd7 {[%clk 0:00:33.7]} 34. b4 {[%clk 0:00:17.6]} 34... Qa4
{[%clk 0:00:26.3]} 35. Bb2 {[%clk 0:00:13.4]} 35... Nb6 {[%clk 0:00:14.5]} 36.
Qd4 {[%clk 0:00:13.2]} 36... Bf8 {[%clk 0:00:07]} 37. Be2 {[%clk 0:00:05]} 37...
Nd7 {[%clk 0:00:05.7]} 38. g3 {[%clk 0:00:04.2]} 38... Ne5 {[%clk 0:00:05.6]}
39. Kg2 {[%clk 0:00:04.9]} 39... Nc6 {[%clk 0:00:05.5]} 40. Qd5 {[%clk
0:00:04.3]} 40... Qc2 {[%clk 0:00:05.6]} 41. Kf1 {[%clk 0:00:01.5]} 41... Nxb4
{[%clk 0:00:06.2]} 42. Qd4 {[%clk 0:00:01.7]} 42... Qb1+ {[%clk 0:00:06.4]} 43.
Kg2 {[%clk 0:00:01.6]} 43... Nc2 {[%clk 0:00:07.3]} 44. Qc3 {[%clk 0:00:02.2]}
44... h5 {[%clk 0:00:04.6]} 45. Kf2 {[%clk 0:00:02.6]} 45... h4 {[%clk
0:00:03.6]} 46. Bd3 {[%clk 0:00:03.3]} 46... Qh1 {[%clk 0:00:03.3]} 47. Qxc2
{[%clk 0:00:03.8]} 47... Qxh2+ {[%clk 0:00:03.9]} 48. Ke3 {[%clk 0:00:04.5]}
48... hxg3 {[%clk 0:00:04.8]} 49. Qf2 {[%clk 0:00:05.2]} 49... Qxf2+ {[%clk
0:00:04.3]} 50. Kf4 {[%clk 0:00:05.6]} 50... g2 {[%clk 0:00:05.2]} 0-1